fUSD/lending_fUSD_20241223
["ID","MTS","AMOUNT","RATE_DAILY","PERIOD"]
[346419423,1734954650715,-689.01,0.00019178,2]
[346419424,1734954650726,-500.0,0.00019178,2]
[346419425,1734954650736,-501.04340522,0.00019178,2]
[346419426,1734954650746,-500.0,0.00019178,2]
[346419427,1734954650756,-507.75461407,0.00019178,2]
[346419428,1734954650766,-1354.6,0.00019178,2]
[346419429,1734954650776,-500.0,0.00019178,2]
[346419430,1734954650786,-5431.31,0.00019178,2]
[346419431,1734954650796,-521.9,0.00019178,2]
[346419432,1734954650805,-4990.6,0.00019178,2]
[346419433,1734954650815,-500.0,0.00019178,2]
[346419434,1734954650825,-500.0,0.00019178,2]
[346419435,1734954650835,-1104.6,0.00019178,2]
[346419436,1734954650844,-500.0,0.00019178,2]
[346419437,1734954650854,-500.0,0.00019178,2]
[346419438,1734954650864,-5375.78,0.00019178,2]
[346419439,1734954650873,-1457.14,0.00019178,2]
[346419440,1734954650883,-500.0,0.00019178,2]
[346419441,1734954650892,-743.5,0.00019178,2]
[346419442,1734954650902,-500.0,0.00019178,2]
[346419443,1734954650912,-3709.86,0.00019178,2]
[346419444,1734954650921,-2876.43,0.00019178,2]
[346419445,1734954650931,-500.0,0.00019178,2]
[346419446,1734954650940,-584.96,0.00019178,2]
[346419447,1734954650949,-1188.97,0.00019178,2]
[346419448,1734954650963,-500.0,0.00019178,2]
[346419449,1734954650973,-500.0,0.00019178,2]
[346419450,1734954650983,-1321.15,0.00019178,2]
[346419451,1734954650992,-500.0,0.00019178,2]
[346419452,1734954651003,-500.0,0.00019178,2]
[346419453,1734954651016,-621.71,0.00019178,2]
[346419454,1734954651026,-2492.98,0.00019178,2]
[346419455,1734954651035,-5160.03,0.00019178,2]
[346419456,1734954651044,-500.49,0.00019178,2]
[346419457,1734954651055,-543.43,0.00019178,2]
[346419458,1734954651064,-500.0,0.00019178,2]
[346419459,1734954651075,-500.0,0.00019178,2]
[346419460,1734954651087,-500.0,0.00019178,2]
[346419461,1734954651097,-738.4,0.00019178,2]
[346419462,1734954651107,-735.78,0.00019178,2]
[346419463,1734954651116,-500.0,0.00019178,2]
[346419464,1734954651125,-1276.05,0.00019178,2]
[346419465,1734954651135,-2230.94,0.00019178,2]
[346419466,1734954651145,-500.0,0.00019178,2]
[346419467,1734954651155,-4164.94,0.00019178,2]
[346419468,1734954651164,-500.0,0.00019178,2]
[346419469,1734954651174,-500.0,0.00019178,2]
[346419470,1734954651183,-500.0,0.00019178,2]
[346419471,1734954651193,-500.0,0.00019178,2]
[346419472,1734954651203,-500.0,0.00019178,2]
[346419473,1734954651212,-537.26,0.00019178,2]
[346419474,1734954651222,-500.0,0.00019178,2]
[346419475,1734954651232,-500.0,0.00019178,2]
[346419476,1734954651242,-5713.75,0.00019178,2]
[346419477,1734954651251,-1152.17,0.00019178,2]
[346419478,1734954651261,-761.36,0.00019178,2]
[346419479,1734954651271,-500.0,0.00019178,2]
[346419480,1734954651280,-500.0,0.00019178,2]
[346419481,1734954651290,-1265.49,0.00019178,2]
[346419482,1734954651299,-2380.45,0.00019178,2]
[346419483,1734954651308,-3218.86,0.00019178,2]
[346419484,1734954651318,-1179.44,0.00019178,2]
[346419485,1734954651327,-500.0,0.00019178,2]
[346419486,1734954651337,-500.0,0.00019178,2]
[346419487,1734954651346,-31849.45,0.00019178,2]
[346419488,1734954651356,-500.0,0.00019178,2]
[346419489,1734954651365,-500.0,0.00019178,2]
[346419490,1734954651375,-1338.12,0.00019178,2]
[346419491,1734954651385,-4625.72,0.00019178,2]
[346419492,1734954651394,-500.0,0.00019178,2]
[346419493,1734954651404,-500.0,0.00019178,2]
[346419494,1734954651414,-1031.58,0.00019178,2]
[346419495,1734954651423,-1160.67,0.00019178,2]
[346419496,1734954651433,-1031.58,0.00019178,2]
[346419497,1734954651443,-500.0,0.00019178,2]
[346419498,1734954651452,-1031.58,0.00019178,2]
[346419499,1734954651461,-1031.58,0.00019178,2]
[346419500,1734954651471,-1031.58,0.00019178,2]
[346419501,1734954651481,-1031.58,0.00019178,2]
[346419502,1734954651490,-500.0,0.00019178,2]
[346419503,1734954651499,-1031.58,0.00019178,2]
[346419504,1734954651508,-1031.58,0.00019178,2]
[346419505,1734954651518,-1031.58,0.00019178,2]
[346419506,1734954651527,-1031.58,0.00019178,2]
[346419507,1734954651536,-1031.58,0.00019178,2]
[346419508,1734954651546,-1031.58,0.00019178,2]
[346419509,1734954651555,-1031.58,0.00019178,2]
[346419510,1734954651564,-1031.58,0.00019178,2]
[346419511,1734954651573,-500.0,0.00019178,2]
[346419512,1734954651582,-1031.58,0.00019178,2]
[346419513,1734954651591,-4712.6,0.00019178,2]
[346419514,1734954651601,-1031.58,0.00019178,2]
[346419515,1734954651610,-1031.58,0.00019178,2]
[346419516,1734954651620,-1031.58,0.00019178,2]
[346419517,1734954651629,-1031.58,0.00019178,2]
[346419518,1734954651638,-1031.58,0.00019178,2]
[346419519,1734954651647,-1031.58,0.00019178,2]
[346419520,1734954651656,-1031.58,0.00019178,2]
[346419521,1734954651666,-1031.58,0.00019178,2]
[346419522,1734954651675,-2742.53,0.00019178,2]
[346419523,1734954651685,-1031.81028236,0.00019178,2]
[346419524,1734954651694,-500.0,0.00019178,2]
[346419525,1734954651703,-525.04,0.00019178,2]
[346419526,1734954651713,-5476.97,0.00019178,2]
[346419527,1734954651722,-500.0,0.00019178,2]
[346419528,1734954651731,-1553.72,0.00019178,2]
[346419529,1734954651740,-500.0,0.00019178,2]
[346419530,1734954651749,-500.0,0.00019178,2]
[346419531,1734954651759,-500.0,0.00019178,2]
[346419532,1734954651768,-500.0,0.00019178,2]
[346419533,1734954651777,-500.0,0.00019178,2]
[346419534,1734954651787,-500.0,0.00019178,2]
[346419535,1734954651796,-10989.95,0.00019178,2]
[346419536,1734954651806,-238.50549969,0.00019178,2]
[346419537,1734954651815,-759.61,0.00019178,2]
[346419538,1734954651824,-5855.21,0.00019178,2]
[346419539,1734954651833,-1792.4,0.00019178,2]
[346419540,1734954651843,-1351.16,0.00019178,2]
[346419541,1734954651852,-9678.6,0.00019178,2]
[346419542,1734954651861,-500.0,0.00019178,2]
[346419543,1734954651870,-833.38,0.00019178,2]
[346419544,1734954651880,-8801.92,0.00019178,2]
[346419545,1734954651889,-2206.78,0.00019178,2]
[346419546,1734954651898,-508.32,0.00019178,2]
[346419547,1734954651908,-500.0,0.00019178,2]
[346419548,1734954651916,-500.0,0.00019178,2]
[346419549,1734954651925,-238.05752482,0.00019178,2]
[346419550,1734954651935,-500.0,0.00019178,2]
[346419551,1734954651944,-759.01,0.00019178,2]
[346419552,1734954651953,-3117.88,0.00019178,2]
[346419553,1734954651962,-500.0,0.00019178,2]
[346419554,1734954651972,-1464.32,0.00019178,2]
[346419555,1734954651981,-6624.4,0.00019178,2]
[346419556,1734954651991,-500.0,0.00019178,2]
[346419557,1734954652000,-2464.83,0.00019178,2]
[346419558,1734954652014,-726.29,0.00019178,2]
[346419559,1734954652023,-4896.88,0.00019178,2]
[346419560,1734954652032,-11186.59,0.00019178,2]
[346419561,1734954652041,-528.68092393,0.00019178,2]
[346419562,1734954652051,-500.0,0.00019178,2]
[346419563,1734954652060,-500.0,0.00019178,2]
[346419564,1734954652069,-1535.9,0.00019178,2]
[346419565,1734954652078,-13573.26,0.00019178,2]
[346419566,1734954652088,-500.0,0.00019178,2]
[346419567,1734954652097,-1471.31,0.00019178,2]
[346419568,1734954652107,-500.0,0.00019178,2]
[346419569,1734954652438,-500.0,0.00019178,2]
[346419570,1734954652448,-500.0,0.00019178,2]
[346419571,1734954652457,-500.0,0.00019178,2]
[346419572,1734954652466,-1762.86,0.00019178,2]
[346419573,1734954652476,-500.0,0.00019178,2]
[346419574,1734954652485,-4216.09,0.00019178,2]
[346419575,1734954652494,-1157.26,0.00019178,2]
[346419576,1734954652503,-1176.31,0.00019178,2]
[346419577,1734954652513,-500.0,0.00019178,2]
[346419578,1734954652522,-63643.59,0.00019178,2]
[346419579,1734954652532,-669.57,0.00019178,2]
[346419580,1734954652540,-669.87,0.00019178,2]
[346419581,1734954652549,-5809.89,0.00019178,2]
[346419582,1734954652559,-1200.4,0.00019178,2]
[346419583,1734954652568,-598.1,0.00019178,2]
[346419584,1734954652577,-1076.9,0.00019178,2]
[346419585,1734954652586,-500.0,0.00019178,2]
[346419586,1734954652595,-1706.91,0.00019178,2]
[346419587,1734954652604,-682.48,0.00019178,2]
[346419588,1734954652613,-500.0,0.00019178,2]
[346419589,1734954652623,-6281.81,0.00019178,2]
[346419590,1734954652632,-1797.16,0.00019178,2]
[346419591,1734954652642,-500.0,0.00019178,2]
[346419592,1734954652651,-2400.1,0.00019178,2]
[346419593,1734954652660,-500.0,0.00019178,2]
[346419594,1734954652669,-500.0,0.00019178,2]
[346419595,1734954652678,-1202.88,0.00019178,2]
[346419596,1734954652687,-5528.23,0.00019178,2]
[346419597,1734954652696,-11411.8,0.00019178,2]
[346419598,1734954652705,-500.0,0.00019178,2]
[346419599,1734954652714,-2995.02,0.00019178,2]
[346419600,1734954652723,-500.0,0.00019178,2]
[346419601,1734954652732,-500.0,0.00019178,2]
[346419602,1734954652742,-500.0,0.00019178,2]
[346419603,1734954652751,-700.0,0.00019178,2]
[346419604,1734954652760,-593.89,0.00019178,2]
[346419605,1734954652770,-10413.19,0.00019178,2]
[346419606,1734954652779,-19935.99,0.00019178,2]
[346419607,1734954652787,-8291.93,0.00019178,2]
[346419608,1734954652797,-500.0,0.00019178,2]
[346419609,1734954652806,-1119.38,0.00019178,2]
[346419610,1734954652815,-500.0,0.00019178,2]
[346419611,1734954652824,-7096.01,0.00019178,2]
[346419612,1734954652833,-1503.28,0.00019178,2]
[346419613,1734954652842,-1203.49,0.00019178,2]
[346419614,1734954652851,-500.0,0.00019178,2]
[346419615,1734954652860,-500.0,0.00019178,2]
[346419616,1734954652869,-500.0,0.00019178,2]
[346419617,1734954652879,-500.0,0.00019178,2]
[346419618,1734954652888,-636.43,0.00019178,2]
[346419619,1734954652897,-744.44,0.00019178,2]
[346419620,1734954652906,-1882.09,0.00019178,2]
[346419621,1734954652915,-1020.86,0.00019178,2]
[346419622,1734954652924,-3075.77,0.00019178,2]
[346419623,1734954652933,-500.0,0.00019178,2]
[346419624,1734954652943,-500.0,0.00019178,2]
[346419625,1734954652952,-500.0,0.00019178,2]
[346419626,1734954652961,-605.9,0.00019178,2]
[346419627,1734954652970,-4047.32,0.00019178,2]
[346419628,1734954652980,-3857.16,0.00019178,2]
[346419629,1734954652989,-500.0,0.00019178,2]
[346419630,1734954652998,-2460.64,0.00019178,2]
[346419631,1734954653011,-6112.51,0.00019178,2]
[346419632,1734954653021,-5523.01,0.00019178,2]
[346419633,1734954653030,-500.0,0.00019178,2]
[346419634,1734954653039,-500.0,0.00019178,2]
[346419635,1734954653049,-525.23,0.00019178,2]
[346419636,1734954653058,-1131.5,0.00019178,2]
[346419637,1734954653067,-505.49543642,0.00019178,2]
[346419638,1734954653077,-5678.19,0.00019178,2]
[346419639,1734954653086,-500.0,0.00019178,2]
[346419640,1734954653096,-5587.86,0.00019178,2]
[346419641,1734954653106,-500.0,0.00019178,2]
[346419642,1734954653115,-1929.6,0.00019178,2]
[346419643,1734954653124,-907.44,0.00019178,2]
[346419644,1734954653133,-500.0,0.00019178,2]
[346419645,1734954653142,-500.0,0.00019178,2]
[346419646,1734954653150,-528.82,0.00019178,2]
[346419647,1734954653158,-854.5,0.00019178,2]
[346419648,1734954653168,-1497.44,0.00019178,2]
[346419649,1734954653177,-500.0,0.00019178,2]
[346419650,1734954653186,-3825.7,0.00019178,2]
[346419651,1734954653196,-18693.72,0.00019178,2]
[346419652,1734954653205,-366.88100906,0.00019178,2]
[346419653,1734954653215,-500.0,0.00019178,2]
[346419654,1734954653224,-11010.69,0.00019178,2]
[346419655,1734954653233,-8979.95,0.00019178,2]
[346419656,1734954653243,-17697.55,0.00019178,2]
[346419657,1734954653252,-500.0,0.00019178,2]
[346419658,1734954653261,-513.96,0.00019178,2]
[346419659,1734954653270,-500.0,0.00019178,2]
[346419660,1734954653279,-500.0,0.00019178,2]
[346419661,1734954653289,-500.0,0.00019178,2]
[346419662,1734954653298,-500.0,0.00019178,2]
[346419663,1734954653307,-500.62555668,0.00019178,2]
[346419664,1734954653317,-500.0,0.00019178,2]
[346419665,1734954653326,-500.0,0.00019178,2]
[346419666,1734954653335,-538.14053631,0.00019178,2]
[346419667,1734954653344,-1595.24,0.00019178,2]
[346419668,1734954653354,-500.0,0.00019178,2]
[346419669,1734954653363,-805.01,0.00019178,2]
[346419670,1734954653372,-1962.34,0.00019178,2]
[346419671,1734954653382,-914.06,0.00019178,2]
[346419672,1734954653391,-500.0,0.00019178,2]
[346419673,1734954653401,-500.0,0.00019178,2]
[346419674,1734954653410,-500.0,0.00019178,2]
[346419675,1734954653419,-6349.52,0.00019178,2]
[346419676,1734954653428,-500.0,0.00019178,2]
[346419677,1734954653437,-1643.65,0.00019178,2]
[346419678,1734954653447,-4580.58,0.00019178,2]
[346419679,1734954653456,-500.0,0.00019178,2]
[346419680,1734954653465,-500.0,0.00019178,2]
[346419681,1734954653475,-884.66,0.00019178,2]
[346419682,1734954653485,-2945.71,0.00019178,2]
[346419683,1734954653494,-500.0,0.00019178,2]
[346419684,1734954653503,-500.0,0.00019178,2]
[346419685,1734954653513,-500.0,0.00019178,2]
[346419686,1734954653522,-2910.59,0.00019178,2]
[346419687,1734954653531,-709.48,0.00019178,2]
[346419688,1734954653540,-5013.03,0.00019178,2]
[346419689,1734954653550,-500.0,0.00019178,2]
[346419690,1734954653560,-500.0,0.00019178,2]
[346419691,1734954653569,-500.0,0.00019178,2]
[346419692,1734954653578,-374.90157638,0.00019178,2]
[346419693,1734954653588,-679.09,0.00019178,2]
[346419694,1734954653597,-4781.69,0.00019178,2]
[346419695,1734954653606,-2835.86,0.00019178,2]
[346419696,1734954653616,-5920.65,0.00019178,2]
[346419697,1734954653626,-500.0,0.00019178,2]
[346419698,1734954653635,-500.0,0.00019178,2]
[346419699,1734954653645,-500.0,0.00019178,2]
[346419700,1734954653654,-1108.84,0.00019178,2]
[346419701,1734954653663,-500.0,0.00019178,2]
[346419702,1734954653673,-500.0,0.00019178,2]
[346419703,1734954653682,-1881.62,0.00019178,2]
[346419704,1734954653691,-912.41,0.00019178,2]
[346419705,1734954653700,-2218.46,0.00019178,2]
[346419706,1734954653710,-500.0,0.00019178,2]
[346419707,1734954653719,-500.0,0.00019178,2]
[346419708,1734954653731,-500.0,0.00019178,2]
[346419709,1734954653741,-1701.79,0.00019178,2]
[346419710,1734954653750,-500.0,0.00019178,2]
[346419711,1734954653759,-500.0,0.00019178,2]
[346419712,1734954653768,-502.4077007,0.00019178,2]
[346419713,1734954653777,-732.09,0.00019178,2]
[346419714,1734954653786,-939.75,0.00019178,2]
[346419715,1734954653796,-321.10715065,0.00019178,2]
[346419716,1734954653805,-500.0,0.00019178,2]
[346419717,1734954653814,-500.0,0.00019178,2]
[346419718,1734954653823,-665.91,0.00019178,2]
[346419719,1734954653832,-1079.77,0.00019178,2]
[346419720,1734954653842,-1141.39,0.00019178,2]
[346419721,1734954653851,-2154.21,0.00019178,2]
[346419722,1734954653860,-38377.05,0.00019178,2]
[346419723,1734954653869,-500.0,0.00019178,2]
[346419724,1734954653878,-500.0,0.00019178,2]
[346419725,1734954653887,-1811.28,0.00019178,2]
[346419726,1734954653896,-928.45,0.00019178,2]
[346419727,1734954653906,-500.0,0.00019178,2]
[346419728,1734954653915,-781.3,0.00019178,2]
[346419729,1734954653924,-500.0,0.00019178,2]
[346419730,1734954653933,-500.0,0.00019178,2]
[346419731,1734954653943,-510.88952493,0.00019178,2]
[346419732,1734954653952,-500.0,0.00019178,2]
[346419733,1734954653961,-776.73,0.00019178,2]
[346419734,1734954653970,-601.16,0.00019178,2]
[346419735,1734954653980,-500.0,0.00019178,2]
[346419736,1734954653990,-1073.89,0.00019178,2]
[346419737,1734954653999,-5210.66,0.00019178,2]
[346419738,1734954654012,-13287.18,0.00019178,2]
[346419739,1734954654021,-500.0,0.00019178,2]
[346419740,1734954654030,-500.0,0.00019178,2]
[346419741,1734954654039,-500.0,0.00019178,2]
[346419742,1734954654049,-500.0,0.00019178,2]
[346419743,1734954654059,-591.51,0.00019178,2]
[346419744,1734954654068,-500.0,0.00019178,2]
[346419745,1734954654077,-500.0,0.00019178,2]
[346419746,1734954654087,-2105.31,0.00019178,2]
[346419747,1734954654097,-1405.18,0.00019178,2]
[346419748,1734954654106,-1444.21,0.00019178,2]
[346419749,1734954654115,-2765.44,0.00019178,2]
[346419750,1734954654124,-500.0,0.00019178,2]
[346419751,1734954654133,-500.0,0.00019178,2]
[346419752,1734954654143,-583.96,0.00019178,2]
[346419753,1734954654152,-500.0,0.00019178,2]
[346419754,1734954654161,-500.0,0.00019178,2]
[346419755,1734954654170,-500.0,0.00019178,2]
[346419756,1734954654181,-645.6,0.00019178,2]
[346419757,1734954654191,-500.0,0.00019178,2]
[346419758,1734954654201,-500.0,0.00019178,2]
[346419759,1734954654210,-4219.36,0.00019178,2]
[346419760,1734954654219,-647.48,0.00019178,2]
[346419761,1734954654229,-988.27,0.00019178,2]
[346419762,1734954654239,-500.0,0.00019178,2]
[346419763,1734954654248,-500.0,0.00019178,2]
[346419764,1734954654258,-156.121636,0.00019178,2]
[346419765,1734954654267,-919.88,0.00019178,2]
[346419766,1734954654277,-500.0,0.00019178,2]
[346419767,1734954654286,-6139.14,0.00019178,2]
[346419768,1734954654295,-153.515854,0.00019178,2]
[346419769,1734954654305,-4051.827827,0.00019178,2]
[346419770,1734954654314,-500.0,0.00019178,2]
[346419771,1734954654323,-500.0,0.00019178,2]
[346419772,1734954654333,-1582.25,0.00019178,2]
[346419773,1734954654342,-1566.0,0.00019178,2]
[346419774,1734954654351,-627.0,0.00019178,2]
[346419775,1734954654361,-4326.271283,0.00019178,2]
[346419776,1734954654370,-1582.11,0.00019178,2]
[346419777,1734954654379,-500.0,0.00019178,2]
[346419778,1734954654388,-500.0,0.00019178,2]
[346419779,1734954654397,-38543.86,0.00019178,2]
[346419780,1734954654406,-33412.3,0.00019178,2]
[346419781,1734954654415,-1761.71,0.00019178,2]
[346419782,1734954654424,-852.29,0.00019178,2]
[346419783,1734954654433,-500.0,0.00019178,2]
[346419784,1734954654442,-500.0,0.00019178,2]
[346419785,1734954654452,-4596.25,0.00019178,2]
[346419786,1734954654461,-500.0,0.00019178,2]
[346419787,1734954654470,-13078.72,0.00019178,2]
[346419788,1734954654479,-3312.79,0.00019178,2]
[346419789,1734954654488,-863.38,0.00019178,2]
[346419790,1734954654497,-8090.62,0.00019178,2]
[346419791,1734954654506,-272.28105925,0.00019178,2]
[346419792,1734954654515,-500.0,0.00019178,2]
[346419793,1734954654524,-500.0,0.00019178,2]
[346419794,1734954654533,-1203.64,0.00019178,2]
[346419795,1734954654543,-1927.74,0.00019178,2]
[346419796,1734954654551,-2954.07,0.00019178,2]
[346419797,1734954654560,-3688.11,0.00019178,2]
[346419798,1734954654570,-1567.01,0.00019178,2]
[346419799,1734954654579,-500.0,0.00019178,2]
[346419800,1734954654588,-584.23,0.00019178,2]
[346419801,1734954654597,-500.0,0.00019178,2]
[346419802,1734954654607,-500.0,0.00019178,2]
[346419803,1734954654615,-556.71,0.00019178,2]
[346419804,1734954654625,-4056.35,0.00019178,2]
[346419805,1734954654634,-2862.88,0.00019178,2]
[346419806,1734954654643,-500.0,0.00019178,2]
[346419807,1734954654652,-500.0,0.00019178,2]
[346419808,1734954654661,-1290.6,0.00019178,2]
[346419809,1734954654745,-500.0,0.00019178,2]
[346419810,1734954654754,-3145.69,0.00019178,2]
[346419811,1734954654763,-500.0,0.00019178,2]
[346419812,1734954654771,-500.0,0.00019178,2]
[346419813,1734954654780,-2058.43,0.00019178,2]
[346419814,1734954654789,-5406.28,0.00019178,2]
[346419815,1734954654798,-8140.54,0.00019178,2]
[346419816,1734954654807,-3473.96,0.00019178,2]
[346419817,1734954654816,-500.0,0.00019178,2]
[346419818,1734954654825,-500.0,0.00019178,2]
[346419819,1734954654834,-500.0,0.00019178,2]
[346419820,1734954654843,-169.27520227,0.00019178,2]
[346419821,1734954654852,-24715.72,0.00019178,2]
[346419822,1734954654861,-1301.35,0.00019178,2]
[346419823,1734954654870,-710.66,0.00019178,2]
[346419824,1734954654879,-500.0,0.00019178,2]
[346419825,1734954654888,-5316.64,0.00019178,2]
[346419826,1734954654897,-6196.2,0.00019178,2]
[346419827,1734954654906,-3743.58,0.00019178,2]
[346419828,1734954654916,-4859.33,0.00019178,2]
[346419829,1734954654925,-472.17384825,0.00019178,2]
[346419830,1734954654934,-154.2039,0.00019178,2]
[346419831,1734954654942,-1980.71,0.00019178,2]
[346419832,1734954654951,-5020.32,0.00019178,2]
[346419833,1734954654960,-500.0,0.00019178,2]
[346419834,1734954654969,-644.27,0.00019178,2]
[346419835,1734954654978,-529.63,0.00019178,2]
[346419836,1734954654987,-500.0,0.00019178,2]
[346419837,1734954654996,-3383.18,0.00019178,2]
[346419838,1734954655008,-3920.13,0.00019178,2]
[346419839,1734954655016,-1279.08,0.00019178,2]
[346419840,1734954655025,-10124.19,0.00019178,2]
[346419841,1734954655034,-500.0,0.00019178,2]
[346419842,1734954655043,-203.59973925,0.00019178,2]
[346419843,1734954655053,-500.0,0.00019178,2]
[346419844,1734954655062,-859.68,0.00019178,2]
[346419845,1734954655071,-500.0,0.00019178,2]
[346419846,1734954655079,-500.0,0.00019178,2]
[346419847,1734954655089,-8671.55,0.00019178,2]
[346419848,1734954655098,-500.0,0.00019178,2]
[346419849,1734954655107,-1261.99,0.00019178,2]
[346419850,1734954655116,-500.0,0.00019178,2]
[346419851,1734954655125,-906.55,0.00019178,2]
[346419852,1734954655134,-500.0,0.00019178,2]
[346419853,1734954655143,-1599.64,0.00019178,2]
[346419854,1734954655152,-500.0,0.00019178,2]
[346419855,1734954655161,-9205.76,0.00019178,2]
[346419856,1734954655170,-500.0,0.00019178,2]
[346419857,1734954655179,-1504.06,0.00019178,2]
[346419858,1734954655188,-500.0,0.00019178,2]
[346419859,1734954655198,-500.0,0.00019178,2]
[346419860,1734954655207,-500.0,0.00019178,2]
[346419861,1734954655216,-500.0,0.00019178,2]
[346419862,1734954655226,-1149.83,0.00019178,2]
[346419863,1734954655235,-500.0,0.00019178,2]
[346419864,1734954655244,-500.0,0.00019178,2]
[346419865,1734954655254,-500.0,0.00019178,2]
[346419866,1734954655263,-500.0,0.00019178,2]
[346419867,1734954655272,-1088.92,0.00019178,2]
[346419868,1734954655281,-1986.48,0.00019178,2]
[346419869,1734954655290,-500.0,0.00019178,2]
[346419870,1734954655300,-856.54,0.00019178,2]
[346419871,1734954655309,-861.77,0.00019178,2]
[346419872,1734954655318,-500.0,0.00019178,2]
[346419873,1734954655327,-500.0,0.00019178,2]
[346419874,1734954655335,-500.0,0.00019178,2]
[346419875,1734954655345,-673.1,0.00019178,2]
[346419876,1734954655354,-1365.99,0.00019178,2]
[346419877,1734954655363,-500.0,0.00019178,2]
[346419878,1734954655372,-500.0,0.00019178,2]
[346419879,1734954655382,-2760.03,0.00019178,2]
[346419880,1734954655391,-2029.32,0.00019178,2]
[346419881,1734954655399,-500.0,0.00019178,2]
[346419882,1734954655408,-690.77,0.00019178,2]
[346419883,1734954655417,-803.58,0.00019178,2]
[346419884,1734954655426,-25322.16,0.00019178,2]
[346419885,1734954655435,-500.0,0.00019178,2]
[346419886,1734954655444,-1201.97,0.00019178,2]
[346419887,1734954655453,-850.5,0.00019178,2]
[346419888,1734954655462,-871.96,0.00019178,2]
[346419889,1734954655471,-7194.83,0.00019178,2]
[346419890,1734954655480,-1664.45,0.00019178,2]
[346419891,1734954655489,-500.0,0.00019178,2]
[346419892,1734954655498,-508.65,0.00019178,2]
[346419893,1734954655507,-500.0,0.00019178,2]
[346419894,1734954655517,-891.29,0.00019178,2]
[346419895,1734954655526,-944.0,0.00019178,2]
[346419896,1734954655535,-6063.23,0.00019178,2]
[346419897,1734954655543,-537.44,0.00019178,2]
[346419898,1734954655552,-500.0,0.00019178,2]
[346419899,1734954655562,-500.0,0.00019178,2]
[346419900,1734954655571,-163.340597,0.00019178,2]
[346419901,1734954655579,-11878.46,0.00019178,2]
[346419902,1734954655588,-828.49,0.00019178,2]
[346419903,1734954655597,-500.0,0.00019178,2]
[346419904,1734954655605,-500.0,0.00019178,2]
[346419905,1734954655614,-158.304428,0.00019178,2]
[346419906,1734954655624,-1284.59,0.00019178,2]
[346419907,1734954655633,-2863.46,0.00019178,2]
[346419908,1734954655642,-500.0,0.00019178,2]
[346419909,1734954655651,-3472.28,0.00019178,2]
[346419910,1734954655659,-500.0,0.00019178,2]
[346419911,1734954655668,-500.0,0.00019178,2]
[346419912,1734954655677,-9482.24,0.00019178,2]
[346419913,1734954655686,-500.0,0.00019178,2]
[346419914,1734954655695,-500.0,0.00019178,2]
[346419915,1734954655704,-220.35154026,0.00019178,2]
[346419916,1734954655713,-500.0,0.00019178,2]
[346419917,1734954655723,-804.01,0.00019178,2]
[346419918,1734954655732,-500.0,0.00019178,2]
[346419919,1734954655741,-500.0,0.00019178,2]
[346419920,1734954655750,-704.29,0.00019178,2]
[346419921,1734954655758,-500.0,0.00019178,2]
[346419922,1734954655767,-841.89,0.00019178,2]